bitfinex-derivatives/quotes_SOLF0:USTF0_20260204
["timestamp","ask_amount","ask_price","bid_price","bid_amount"]
[1770226724870,3.78434426,90.315,90.221,3.60889648]
[1770226725078,3.78434426,90.315,90.196,3.60889648]
[1770226725272,19.9604,90.36,90.19,7.65930829]
[1770226725273,3.78434426,90.306,90.219,3.71973787]
[1770226725472,19.9604,90.36,90.219,3.71973787]
[1770226725473,3.78434426,90.327,90.231,3.60889648]
[1770226725774,3.78434426,90.315,90.231,3.60889648]
[1770226726269,3.78434426,90.299,90.219,3.71973787]
[1770226726468,3.78434426,90.299,90.147,155.6138]
[1770226726469,3.78434426,90.279,90.197,1.92794046]
[1770226726668,3.78434426,90.279,90.11,155.6772]
[1770226726669,9.9904,90.268,90.145,3.60889648]
[1770226726870,3.78434426,90.249,90.145,3.60889648]
[1770226727071,7.65930829,90.29,90.161,3.60889648]
[1770226727375,3.78434426,90.277,90.161,3.60889648]
[1770226727874,7.65930829,90.27,90.161,3.60889648]
[1770226728070,7.65930829,90.26,90.161,3.60889648]
[1770226728270,3.78434426,90.259,90.131,3.60889648]
[1770226728471,3.78434426,90.199,90.088,3.60889648]
[1770226728771,3.78434426,90.159,90.038,3.60889648]
[1770226729178,3.78434426,90.159,90.041,3.60889648]
[1770226729473,3.78434426,90.159,90.044,3.60889648]
[1770226729780,3.78434426,90.159,90.064,3.60889648]
[1770226729975,7.65930829,90.21,90.092,3.60889648]
[1770226730170,7.65930829,90.22,90.071,3.60889648]
[1770226730376,7.65930829,90.18,90.061,3.60889648]
[1770226731272,155.4527,90.241,90.05,7.65930829]
[1770226731273,155.4413,90.248,90.069,3.60889648]
[1770226731472,7.65930829,90.23,90.091,3.60889648]
[1770226731679,9.9923,90.25,90.111,3.60889648]
[1770226731880,155.4049,90.269,90.055,155.7728]
[1770226731881,7.65930829,90.22,90.08,7.65930829]
[1770226732173,3.78434426,90.199,90.081,3.60889648]
[1770226732377,3.78434426,90.189,90.083,3.60889648]
[1770226732574,3.78434426,90.186,90.058,3.60889648]
[1770226732770,3.78434426,90.169,90.058,3.60889648]
[1770226733176,3.78434426,90.169,90.034,1.93127331]
[1770226733177,3.78434426,90.169,90.035,3.60889648]
[1770226733373,3.78434426,90.169,90.037,3.60889648]
[1770226733875,3.75831197,90.149,90.037,3.60889648]
[1770226734073,3.75831197,90.149,90.041,3.84200682]
[1770226734481,3.75831197,90.189,90.066,3.84200682]
[1770226734776,3.75831197,90.186,90.069,3.84200682]
[1770226734980,3.75831197,90.186,90.078,3.84200682]
[1770226736177,3.75831197,90.186,90.08,3.84200682]
[1770226736378,3.75831197,90.209,90.094,3.84200682]
[1770226736584,3.75831197,90.209,90.096,3.84200682]
[1770226736778,3.75831197,90.209,90.138,3.84200682]
[1770226736974,3.75831197,90.233,90.138,3.84200682]
[1770226737175,3.75831197,90.233,90.12,30.89412831]
[1770226737176,3.75831197,90.257,90.151,3.84200682]
[1770226737385,3.75831197,90.257,90.15,30.89412831]
[1770226737386,3.75831197,90.257,90.161,3.84200682]
[1770226737780,155.2959,90.332,90.15,30.89412831]
[1770226737781,3.75831197,90.332,90.191,3.84200682]
[1770226738082,3.75831197,90.327,90.201,3.84200682]
[1770226738384,3.84274529,90.303,90.201,3.84200682]
[1770226739280,3.84274529,90.303,90.202,3.79822433]
[1770226739687,3.84274529,90.303,90.206,3.79822433]
[1770226740382,3.84274529,90.295,90.206,3.79822433]
[1770226740579,3.84274529,90.295,90.182,3.79822433]
[1770226740979,3.84274529,90.295,90.188,3.79822433]
[1770226741583,3.84274529,90.295,90.197,9.9981]
[1770226741885,3.84274529,90.329,90.198,3.79822433]
[1770226742288,3.84274529,90.309,90.207,3.79822433]
[1770226742484,3.84274529,90.309,90.171,3.79822433]
[1770226742984,3.84274529,90.305,90.196,3.79822433]
[1770226743387,3.84274529,90.305,90.201,3.79822433]
[1770226743989,3.84274529,90.301,90.207,9.997]
[1770226744186,3.84274529,90.301,90.201,3.79822433]
[1770226744390,3.84274529,90.301,90.191,155.5372]
[1770226744391,3.84274529,90.327,90.221,3.79822433]
[1770226744686,30.89412831,90.37,90.204,155.5149]
[1770226744687,3.84274529,90.376,90.26,30.89412831]
[1770226744892,3.84274529,90.376,90.264,3.79822433]
[1770226745086,3.84274529,90.376,90.292,3.79822433]
[1770226745280,3.84274529,90.404,90.292,3.79822433]
[1770226746385,155.1033,90.444,90.292,3.79822433]
[1770226746386,3.84274529,90.399,90.304,9.9863]
[1770226747289,3.84274529,90.394,90.304,9.9863]
[1770226747790,3.84274529,90.394,90.317,9.9848]
[1770226748389,3.84274529,90.394,90.267,3.79822433]
[1770226748791,3.84274529,90.38,90.303,9.9863]
[1770226748993,3.84274529,90.38,90.29,3.79822433]
[1770226749290,3.84274529,90.38,90.315,9.985]
[1770226749590,3.84274529,90.38,90.29,3.79822433]
[1770226750092,3.84274529,90.38,90.292,9.9876]
[1770226750287,3.84274529,90.38,90.293,3.79822433]
[1770226750492,3.84274529,90.38,90.3,9.9867]
[1770226750993,3.84274529,90.376,90.293,3.79822433]
[1770226751386,30.89412831,90.42,90.293,3.79822433]
[1770226751387,3.84274529,90.416,90.293,3.79822433]
[1770226751592,3.84274529,90.416,90.321,9.9843]
[1770226752092,9.9759,90.399,90.309,9.9857]
[1770226752290,3.84274529,90.398,90.309,9.9857]
[1770226752692,3.84274529,90.398,90.309,13.78392433]
[1770226752989,3.84274529,90.398,90.313,3.79822433]
[1770226753195,3.84274529,90.398,90.29,3.79822433]
[1770226753394,3.84274529,90.383,90.29,3.79822433]
[1770226754189,9.98,90.361,90.29,13.78612433]
[1770226754494,3.84274529,90.383,90.291,3.79822433]
[1770226755100,7.64994412,90.35,90.291,2.433e-05]
[1770226755390,3.84274529,90.309,90.19,7.64994412]
[1770226755590,3.84274529,90.304,90.225,9.995]
[1770226755791,3.84274529,90.329,90.21,7.64994412]
[1770226755988,3.84274529,90.329,90.163,13.30498349]
[1770226756187,155.2411,90.364,90.158,155.5939]
[1770226756188,3.84274529,90.373,90.19,7.64994412]
[1770226756396,3.84274529,90.359,90.23,7.64994412]
[1770226756692,9.9849,90.318,90.25,7.64994412]
[1770226756897,7.64994412,90.36,90.243,9.9931]
[1770226756898,3.84274529,90.333,90.243,9.9931]
[1770226757397,9.9835,90.33,90.256,3.79822433]
[1770226757594,3.84274529,90.359,90.27,7.64994412]
[1770226757793,9.9823,90.341,90.273,3.79822433]
[1770226758500,3.84274529,90.399,90.294,3.79822433]
[1770226758995,9.9778,90.381,90.301,3.79822433]
[1770226759196,9.9778,90.381,90.266,33.15]
[1770226759197,3.84274529,90.399,90.311,3.79822433]
[1770226759397,9.9734,90.421,90.339,3.79822433]
[1770226759594,3.84274529,90.424,90.339,3.79822433]
[1770226760291,3.84274529,90.4,90.291,3.79822433]
[1770226760492,3.84274529,90.459,90.293,3.79822433]
[1770226760691,3.84274529,90.459,90.311,3.79822433]
[1770226760892,3.84274529,90.459,90.349,3.79822433]
[1770226761288,3.84274529,90.459,90.373,3.79822433]
[1770226761490,9.9682,90.469,90.373,3.79822433]
[1770226761694,3.84274529,90.483,90.373,3.79822433]
[1770226762093,3.84274529,90.507,90.391,3.79822433]
[1770226762694,3.84274529,90.507,90.332,155.2936]
[1770226762695,3.84274529,90.478,90.392,3.79822433]
[1770226762890,3.84274529,90.478,90.35,30.72538664]
[1770226762891,3.84274529,90.478,90.351,3.79822433]
[1770226763600,30.72538664,90.51,90.35,30.72538664]
[1770226763601,3.84274529,90.458,90.35,3.79822433]
[1770226764097,3.66498277,90.407,90.275,3.68586537]
[1770226764490,3.66498277,90.407,90.308,3.68586537]
[1770226764898,3.66498277,90.469,90.31,3.68586537]
[1770226765096,3.66498277,90.432,90.338,9.9825]
[1770226765698,3.66498277,90.432,90.351,9.9811]
[1770226765896,3.66498277,90.432,90.336,3.68586537]
[1770226766196,3.66498277,90.432,90.364,9.9796]
[1770226766401,3.66498277,90.432,90.336,3.68586537]
[1770226766803,3.66498277,90.432,90.339,9.9824]
[1770226767000,3.66498277,90.432,90.3,30.72538664]
[1770226767203,3.66498277,90.423,90.301,3.68586537]
[1770226767503,3.66498277,90.359,90.27,3.68586537]
[1770226768201,3.66498277,90.359,90.285,9.9883]
[1770226768401,3.66498277,90.359,90.27,3.68586537]
[1770226768606,3.66498277,90.359,90.27,13.67586537]
[1770226769003,3.66498277,90.359,90.27,3.68586537]
[1770226769302,3.66498277,90.359,90.279,9.9891]
[1770226769502,3.66498277,90.359,90.27,3.68586537]
[1770226769705,3.66498277,90.355,90.278,9.9892]
[1770226770002,3.66498277,90.355,90.27,3.68586537]
[1770226770200,3.66498277,90.355,90.246,3.68586537]
[1770226770508,9.983,90.334,90.246,3.68586537]
[1770226770807,9.983,90.335,90.25,9.9922]
[1770226770998,3.66498277,90.334,90.25,9.9922]
[1770226771302,9.9834,90.331,90.25,9.9922]
[1770226771599,9.9834,90.331,90.246,3.68586537]
[1770226771804,3.66498277,90.33,90.246,3.68586537]
[1770226771999,155.2321,90.369,90.2,30.72538664]
[1770226772000,3.66498277,90.312,90.22,3.68586537]
[1770226772604,9.9841,90.325,90.247,9.9925]
[1770226772906,3.66498277,90.341,90.248,3.68586537]
[1770226773308,13.64728277,90.341,90.265,9.9906]
[1770226773605,13.64728277,90.341,90.248,3.68586537]
[1770226773606,3.66498277,90.341,90.248,3.68586537]
[1770226774903,3.66498277,90.389,90.271,3.68586537]
[1770226775111,3.66498277,90.389,90.273,3.68586537]
[1770226775303,9.9773,90.387,90.318,9.9847]
[1770226775503,3.66498277,90.389,90.31,3.68586537]
[1770226776010,9.9793,90.368,90.299,9.9868]
[1770226776509,9.9779,90.381,90.311,9.9855]
[1770226776906,3.66498277,90.389,90.311,9.9855]
[1770226777301,3.66498277,90.389,90.322,9.9842]
[1770226777501,3.66498277,90.389,90.306,3.68586537]
[1770226777900,3.66498277,90.417,90.339,9.9824]
[1770226778109,3.66498277,90.417,90.311,3.68586537]
[1770226778607,3.66498277,90.417,90.356,9.9805]
[1770226779113,3.66498277,90.411,90.326,9.9838]
[1770226779307,3.66498277,90.411,90.309,3.68586537]
[1770226779810,9.9782,90.378,90.315,9.9851]
[1770226780009,9.9782,90.378,90.309,3.68586537]
[1770226780511,3.66498277,90.389,90.309,3.68586537]
[1770226780903,3.66498277,90.416,90.339,3.68586537]
[1770226781410,9.9767,90.392,90.339,3.68586537]
[1770226781710,9.9767,90.392,90.312,3.68586537]
[1770226782012,9.9768,90.39,90.318,9.9847]
[1770226782309,9.9768,90.39,90.263,155.4127]
[1770226782310,3.66498277,90.394,90.288,3.68586537]
[1770226782705,9.9802,90.36,90.293,9.9875]
[1770226782911,3.66498277,90.371,90.288,3.68586537]
[1770226783414,9.9801,90.361,90.295,9.9873]
[1770226784012,3.66498277,90.371,90.307,9.9859]
[1770226784415,3.66498277,90.371,90.291,3.68586537]
[1770226784617,9.9803,90.359,90.296,9.9872]
[1770226785018,3.66498277,90.371,90.296,9.9872]
[1770226785220,19.9469,90.421,90.296,9.9872]
[1770226785221,7.6492963,90.42,90.296,3.68586537]
[1770226785420,3.66498277,90.419,90.296,3.68586537]
[1770226785624,3.66498277,90.419,90.301,3.68586537]
[1770226785820,3.66498277,90.392,90.301,3.68586537]
[1770226786718,3.66498277,90.379,90.26,20.16780349]
[1770226786921,3.66498277,90.379,90.261,3.68586537]
[1770226787115,3.66498277,90.379,90.264,3.68586537]
[1770226787320,3.66498277,90.379,90.272,3.68586537]
[1770226787713,3.66498277,90.379,90.26,7.64983685]
[1770226787714,3.66498277,90.379,90.281,3.68586537]
[1770226788321,9.9805,90.357,90.292,9.9876]
[1770226788825,3.66498277,90.379,90.281,3.68586537]
[1770226789024,3.66498277,90.353,90.281,3.68586537]
[1770226789225,3.66498277,90.353,90.281,17.3667593]
[1770226789523,3.66498277,90.353,90.22,26.86921263]
[1770226789524,3.66498277,90.353,90.271,13.68089393]
[1770226789724,3.66498277,90.353,90.266,13.68089393]
[1770226789925,3.66498277,90.353,90.268,13.68089393]
[1770226790315,3.66498277,90.353,90.258,3.68586537]
[1770226790316,3.66498277,90.353,90.282,13.68089393]
[1770226790521,9.9815,90.348,90.282,13.68089393]
[1770226790826,3.66498277,90.353,90.278,13.68089393]
[1770226791022,3.66498277,90.353,90.25,7.64983685]
[1770226791023,3.66498277,90.353,90.284,13.68089393]
[1770226791223,9.9814,90.349,90.284,13.68089393]
[1770226791620,3.66498277,90.399,90.289,17.3667593]
[1770226791924,3.66498277,90.399,90.232,182.33631263]
[1770226791925,3.66498277,90.407,90.317,3.68586537]
[1770226792226,3.66498277,90.407,90.331,3.68586537]
[1770226792724,3.66498277,90.407,90.318,13.68089393]
[1770226792924,3.66498277,90.407,90.33,13.68089393]
[1770226793122,3.66498277,90.407,90.319,13.68089393]
[1770226793422,3.66498277,90.399,90.315,13.68089393]
[1770226793619,3.66498277,90.399,90.31,13.68089393]
[1770226793820,3.62901233,90.374,90.31,13.68089393]
[1770226794023,3.62901233,90.374,90.303,13.68089393]
[1770226794219,3.62901233,90.374,90.295,13.68089393]
[1770226794420,3.62901233,90.359,90.262,3.65430394]
[1770226794625,3.62901233,90.359,90.268,3.65430394]
[1770226794830,3.62901233,90.359,90.284,13.68089393]
[1770226795131,9.9826,90.338,90.276,3.65430394]
[1770226795532,3.62901233,90.359,90.277,3.65430394]
[1770226795729,3.62901233,90.359,90.28,13.68089393]
[1770226796030,9.9824,90.34,90.281,3.65430394]
[1770226796236,9.9824,90.34,90.282,13.68089393]
[1770226796530,9.9824,90.34,90.281,3.65430394]
[1770226796722,9.9834,90.331,90.281,3.65430394]
[1770226797132,3.62901233,90.359,90.281,3.65430394]
[1770226797530,3.62901233,90.359,90.266,13.68089393]
[1770226797926,9.9842,90.324,90.27,13.68089393]
[1770226798331,3.6223258,90.356,90.258,3.65430394]
[1770226799028,3.6223258,90.353,90.258,3.65430394]
[1770226799630,3.6223258,90.35,90.258,3.65430394]
[1770226800028,3.6223258,90.327,90.244,13.68089393]
[1770226800229,3.6223258,90.327,90.245,3.66939215]
[1770226800429,9.9868,90.3,90.259,13.68089393]
[1770226800631,3.6223258,90.327,90.257,3.66939215]
[1770226800932,9.9828,90.336,90.275,3.66939215]
[1770226801129,9.9828,90.336,90.215,155.4966]
[1770226801130,3.6223258,90.349,90.261,13.68089393]
[1770226801330,3.6223258,90.349,90.262,13.68089393]
[1770226801633,3.6223258,90.349,90.256,13.68089393]
[1770226802033,9.9857,90.31,90.257,3.66939215]
[1770226802230,9.9857,90.31,90.257,17.35028608]
[1770226802431,9.9857,90.31,90.257,3.66939215]
[1770226802730,9.987,90.299,90.257,17.35028608]
[1770226803432,3.6223258,90.326,90.257,17.35028608]
[1770226803633,3.6223258,90.326,90.257,3.66939215]
[1770226803933,9.9888,90.282,90.24,13.68089393]
[1770226804137,3.6223258,90.319,90.234,3.66939215]
[1770226804333,3.6223258,90.319,90.218,9.9957]
[1770226804334,3.6223258,90.319,90.227,13.68089393]
[1770226804535,9.9903,90.269,90.227,13.68089393]
[1770226804735,9.9903,90.269,90.222,13.68089393]
[1770226804939,3.6223258,90.319,90.232,3.66939215]
[1770226805230,3.6223258,90.319,90.227,13.68089393]
[1770226805435,3.6223258,90.319,90.142,155.6215]
[1770226805436,3.6223258,90.289,90.179,3.66939215]
[1770226805630,3.6223258,90.269,90.179,3.66939215]
[1770226806836,9.9941,90.234,90.179,3.66939215]
[1770226807429,3.6223258,90.249,90.139,20.16780349]
[1770226807642,3.6223258,90.229,90.13,3.66939215]
[1770226808034,3.6223258,90.229,90.107,3.66939215]
[1770226808035,3.6223258,90.208,90.107,3.66939215]
[1770226808335,155.5342,90.194,90.055,3.66939215]
[1770226808538,155.5342,90.194,89.969,155.9217]
[1770226808539,7.64983685,90.16,90.069,10.7140983]
[1770226808736,155.5207,90.202,90.069,10.7140983]
[1770226809033,9.9985,90.195,90.091,10.7140983]
[1770226809233,7.64983685,90.18,90.061,10.7140983]
[1770226809437,7.64983685,90.2,90.071,10.7140983]
[1770226809637,7.64983685,90.18,90.071,10.7140983]
[1770226809935,155.5911,90.161,90.047,10.7140983]
[1770226810133,155.5755,90.17,90.047,10.7140983]
[1770226810134,10.005,90.136,90.047,10.7140983]
[1770226810733,7.64983685,90.19,90.051,10.7005336]
[1770226810934,155.49,90.219,90.071,10.7005336]
[1770226811136,155.5297,90.196,90.081,10.7005336]
[1770226811333,7.64983685,90.16,90.057,10.7005336]
[1770226811740,10.0045,90.141,90.057,10.7005336]
[1770226811938,155.5319,90.195,90.057,10.7005336]
[1770226812142,7.64983685,90.18,90.057,10.7005336]
[1770226812435,7.64983685,90.2,90.07,7.64983685]
[1770226812641,155.5155,90.205,90.091,10.84074661]
[1770226812938,10.0001,90.181,90.091,10.84074661]
[1770226813142,7.64983685,90.23,90.111,10.84074661]
[1770226813337,9.9999,90.182,90.081,10.84074661]
[1770226813931,7.64983685,90.21,90.084,10.84074661]
[1770226814131,155.5336,90.194,90.084,10.84074661]
[1770226814336,7.64983685,90.19,90.084,10.84074661]
[1770226814631,7.64983685,90.19,89.968,27.27605357]
[1770226814632,7.64983685,90.21,90.091,10.83878022]
[1770226814937,9.9978,90.201,90.091,10.83878022]
[1770226815131,7.64983685,90.21,90.091,10.83878022]
[1770226815534,9.9996,90.185,90.091,10.83878022]
[1770226815841,7.64983685,90.21,90.091,10.83878022]
[1770226816042,9.9978,90.201,90.091,10.83878022]
[1770226816344,7.64983685,90.21,90.091,10.83878022]
[1770226816539,7.64983685,90.18,90.091,10.83878022]
[1770226816841,7.64983685,90.18,90.068,10.79406462]
[1770226817145,7.64983685,90.2,90.071,10.79406462]
[1770226817644,7.64983685,90.18,90.075,10.79406462]
[1770226818041,10.0041,90.144,90.075,10.79406462]
[1770226818744,7.64983685,90.18,90.075,10.79406462]
[1770226818745,10.0023,90.16,90.075,10.79406462]
[1770226819142,7.64983685,90.18,90.075,10.79406462]
[1770226819338,7.64983685,90.16,90.075,10.79406462]
[1770226819543,7.64983685,90.16,90.045,10.75131807]
[1770226819748,10.0052,90.134,90.045,10.75131807]
[1770226820047,7.64983685,90.14,90.021,10.75131807]
[1770226820243,10.0087,90.103,90.021,10.75131807]
[1770226820544,466.9297,90.131,89.882,156.0721]
[1770226820741,466.8734,90.142,89.91,10.03]
[1770226820742,10.0199,90.002,89.91,10.03]
[1770226820947,7.64983685,90.05,89.92,7.64983685]
[1770226821247,10.0182,90.017,89.921,10.0288]
[1770226821444,10.0182,90.017,89.847,156.1321]
[1770226821445,7.64983685,90.08,89.93,7.64983685]
[1770226821639,20.016,90.109,89.918,156.0099]
[1770226821640,7.64983685,90.1,89.97,7.64983685]
[1770226821844,7.64983685,90.1,89.928,155.9922]
[1770226821845,7.64983685,90.11,89.98,7.64983685]
[1770226822141,7.64983685,90.11,89.925,155.9978]
[1770226822447,7.64983685,90.17,90.05,7.64983685]
[1770226822748,155.5767,90.169,90.061,6.43894937]
[1770226822946,10.0068,90.12,90.061,6.2982906]
[1770226823246,7.64983685,90.15,90.061,6.2982906]
[1770226823444,7.64983685,90.15,90.061,6.2482906]
[1770226823841,155.5608,90.178,90.061,6.2482906]
[1770226823842,10.006,90.127,90.061,6.2482906]
[1770226824149,7.64983685,90.19,90.07,7.64983685]
[1770226824445,155.5765,90.169,90.049,10.0146]
[1770226824638,155.5319,90.195,90.03,20.59606263]
[1770226824846,155.5711,90.172,90.03,20.59606263]
[1770226825045,155.5821,90.166,90.046,10.0149]
[1770226825346,155.5812,90.167,90.03,20.59606263]
[1770226825542,155.5812,90.167,90.031,6.31028296]
[1770226825743,10.004,90.145,90.045,6.31028296]
[1770226826047,155.5672,90.175,90.045,6.31028296]
[1770226826449,10.0062,90.125,90.045,6.31028296]
[1770226826645,20.59606263,90.18,90.045,6.31028296]
[1770226827138,10.0032,90.152,90.009,1.93139657]
[1770226827348,20.59606263,90.15,90.01,6.19910481]
[1770226827646,155.5753,90.17,90.01,6.19910481]
[1770226827647,20.59606263,90.17,90.01,6.19910481]
[1770226828143,10.0062,90.125,90.037,6.19910481]
[1770226828342,263.96722495,90.2,90.037,6.19910481]
[1770226828548,155.5424,90.189,90.037,6.19910481]
[1770226828945,10.0047,90.139,90.042,6.31257806]
[1770226829246,155.5333,90.194,90.042,6.31257806]
[1770226829247,20.59606263,90.17,90.042,6.31257806]
[1770226829449,10.0054,90.132,90.042,6.31257806]
[1770226829840,155.5803,90.167,90.042,6.31257806]
[1770226830047,155.6056,90.152,90.042,6.31257806]
[1770226830348,20.59606263,90.14,89.991,6.31257806]
[1770226830750,20.59606263,90.14,90.011,16.39192392]
[1770226831049,155.6359,90.135,89.985,6.37312392]
[1770226831247,20.59606263,90.14,89.985,6.37312392]
[1770226831546,10.0081,90.108,90.015,6.37312392]
[1770226831851,20.59606263,90.14,90.015,6.37312392]
[1770226832146,20.59606263,90.14,89.991,6.37312392]
[1770226832651,10.0077,90.112,90.028,10.0168]
[1770226832951,20.59606263,90.14,90.021,6.37379092]
[1770226832952,155.6292,90.139,90.021,6.37379092]
[1770226833152,20.59606263,90.14,90.021,6.37379092]
[1770226833548,10.0085,90.105,90.024,6.37379092]
[1770226834248,10.007,90.118,90.039,6.37379092]
[1770226834846,155.5765,90.169,90.039,6.37379092]
[1770226835050,20.59606263,90.17,90.039,6.37379092]
[1770226835350,10.0067,90.12,90.039,6.37379092]
[1770226836241,10.0054,90.132,90.039,6.37379092]
[1770226836441,263.96722495,90.2,90.039,6.37379092]
[1770226837051,10.0039,90.146,90.061,10.0132]
[1770226837246,155.5396,90.191,90.062,6.03691241]
[1770226837450,155.5546,90.182,90.062,6.03691241]
[1770226837653,10.0052,90.134,90.062,6.03691241]
[1770226837848,19.997,90.195,90.062,6.03691241]
[1770226838052,155.5355,90.193,90.062,6.03691241]
[1770226838254,155.4859,90.222,89.977,22.2]
[1770226838255,155.351,90.3,90.137,10.0048]
[1770226838548,80.36033551,90.307,90.2,20.59606263]
[1770226838754,80.36033551,90.307,90.23,20.59606263]
[1770226839248,80.36033552,90.38,90.23,20.59606263]
[1770226839449,80.36033552,90.352,90.23,20.59606263]
[1770226839847,80.36033552,90.352,90.26,20.59606263]
[1770226840443,80.36033552,90.352,90.232,9.9943]
[1770226840644,80.36033552,90.352,90.23,20.59606263]
[1770226840845,80.36033552,90.352,90.203,9.9975]
[1770226841251,80.36033552,90.35,90.203,9.9975]
[1770226841453,155.2738,90.345,90.182,9.9998]
[1770226841658,9.9836,90.329,90.182,9.9998]
[1770226842351,9.9859,90.309,90.15,20.59606263]
[1770226842657,9.9859,90.309,90.16,10.0022]
[1770226843455,80.36033552,90.337,90.215,155.4967]
[1770226843655,80.36033552,90.337,90.207,155.5101]
[1770226843958,80.36033552,90.337,90.22,20.59606263]
[1770226844451,80.36033552,90.337,90.203,9.9975]
[1770226844655,20.59606263,90.37,90.203,9.9975]
[1770226844656,80.36033552,90.334,90.203,9.9975]
[1770226844958,80.36033552,90.334,90.223,6.3953]
[1770226845157,80.36033552,90.329,90.19,20.59606263]
[1770226845652,80.36033552,90.329,90.199,9.9979]
[1770226846755,80.36033552,90.329,90.22,30.79283634]
[1770226846956,80.36033552,90.369,90.241,155.4519]
[1770226847161,80.36033552,90.369,90.25,30.79283634]
[1770226847656,9.9768,90.391,90.25,30.79283634]
[1770226847855,80.36033552,90.406,90.29,30.79283634]
[1770226848055,80.36033552,90.406,90.26,30.79283634]
[1770226848359,80.36033552,90.388,90.233,155.4655]
[1770226848561,80.36033552,90.388,90.23,30.79283634]
[1770226848961,80.36033552,90.366,90.263,9.9908]
[1770226849963,80.36033552,90.366,90.232,155.467]
[1770226850264,80.36033552,90.366,90.261,9.9911]
[1770226850758,80.36033552,90.366,90.23,155.4698]
[1770226850960,80.36033552,90.364,90.22,30.79283634]
[1770226852263,80.36033552,90.344,90.244,9.9929]
[1770226852962,80.36033552,90.344,90.202,155.5185]
[1770226852963,80.36033552,90.344,90.257,9.9915]
[1770226853162,80.36033552,90.344,90.226,155.4766]
[1770226853458,80.36033552,90.344,90.22,30.79283634]
[1770226853964,80.36033552,90.344,90.25,9.9923]
[1770226854163,80.36033552,90.344,90.19,30.79283634]
[1770226854362,80.36033552,90.344,90.207,155.5091]
[1770226854557,80.25859671,90.341,90.208,155.5087]
[1770226855064,80.25859671,90.341,90.258,9.9913]
[1770226855562,80.25859671,90.341,90.27,9.9901]
[1770226856164,80.25859671,90.341,90.255,9.9917]
[1770226856560,80.25859671,90.341,90.215,155.4961]
[1770226856863,80.25859671,90.339,90.232,155.4673]
[1770226857165,80.25859671,90.339,90.281,9.9889]
[1770226857462,80.25859671,90.339,90.223,155.4829]
[1770226857657,80.25859671,90.339,90.187,155.5449]
[1770226857658,80.25859671,90.339,90.258,9.9914]
[1770226857862,80.25859671,90.339,90.218,155.4913]
[1770226858054,80.25859671,90.339,90.209,155.5071]
[1770226858055,80.25859671,90.339,90.213,155.4992]
[1770226858257,80.25859671,90.339,90.22,155.4881]
[1770226858456,80.25859671,90.339,90.223,155.482]
[1770226858660,80.25859671,90.339,90.21,30.79283634]
[1770226858661,80.25859671,90.339,90.23,155.4693]
[1770226858961,80.25859671,90.339,90.283,9.9886]
[1770226859856,80.25859671,90.339,90.249,155.4374]
[1770226860062,80.25859671,90.339,90.24,186.24643634]
[1770226860362,80.25859671,90.339,90.279,9.989]
[1770226861060,80.25859671,90.339,90.242,155.4493]
[1770226861363,80.25859671,90.339,90.215,155.4956]
[1770226861364,80.28238208,90.423,90.289,155.3679]
[1770226861566,80.28238208,90.453,90.33,30.79283634]
[1770226861764,80.28238208,90.453,90.332,19.9665]
[1770226861963,90.25368208,90.441,90.33,30.79283634]
[1770226862164,80.28238208,90.441,90.366,9.9794]
[1770226862364,154.9962,90.507,90.33,30.79283634]
[1770226862365,154.9452,90.537,90.352,155.2603]
[1770226862561,30.79283634,90.53,90.369,155.2308]
[1770226862762,30.79283634,90.5,90.34,30.79283634]
[1770226862961,1.92443815,90.496,90.348,155.2673]
[1770226863266,154.9114,90.556,90.34,30.79283634]
[1770226863267,30.79283634,90.52,90.374,155.2231]
[1770226863471,154.8915,90.568,90.374,155.222]
[1770226863668,1.92369349,90.546,90.4,30.79283634]
[1770226863875,9.9641,90.506,90.4,30.79283634]
[1770226864065,1.92369349,90.546,90.37,30.79283634]
[1770226864259,1.92369349,90.546,90.352,155.2605]
[1770226864260,154.8789,90.575,90.431,9.9722]
[1770226864461,72.25331736,90.538,90.416,155.1502]
[1770226864767,154.8046,90.619,90.407,155.1657]
[1770226864768,72.32550864,90.598,90.509,9.9637]
[1770226864971,72.32550864,90.598,90.46,30.79283634]
[1770226865466,72.32550864,90.598,90.49,30.79283634]
[1770226865872,72.32550864,90.598,90.46,30.79283634]
[1770226866075,72.32550864,90.574,90.467,9.9683]
[1770226866367,72.32550864,90.572,90.372,155.2256]
[1770226866568,72.32032729,90.527,90.41,40.76733634]
[1770226866866,72.32032729,90.527,90.41,30.79283634]
[1770226867773,72.32032729,90.527,90.38,30.79283634]
[1770226868071,72.32032729,90.527,90.382,155.2087]
[1770226868272,72.32032729,90.525,90.413,9.9743]
[1770226868470,72.32032729,90.525,90.41,30.79283634]
[1770226868666,72.32032729,90.525,90.384,155.2059]
[1770226868868,72.32032729,90.525,90.38,30.79283634]